[Event "97th Argentine Championship 2022"]
[Site "Barichole"]
[Date "2022.12.05"]
[Round "5.2"]
[White "Krysa, Leandro"]
[Black "Valerga, Diego"]
[Result "1-0"]
[ECO "E11"]
[WhiteElo "2524"]
[BlackElo "2438"]
[Annotator "TA"]
[PlyCount "113"]
[EventDate "2022.12.01"]
[EventType "tourn"]
[EventCountry "ARG"]
[SourceTitle "playchess.com"]
[Source "ChessBase"]
[SourceQuality "1"]
[TimeControl "40/5400+30:1800+30"]

{[%evp 15,113,11,11,19,25,25,16,20,29,31,35,19,15,12,14,14,6,14,27,16,27,26,30,24,21,20,53,18,31,66,55,59,46,35,93,89,97,87,151,139,168,150,156,163,162,164,154,105,106,93,114,110,131,127,141,151,181,181,248,250,250,243,252,137,137,137,137,137,137,137,578,584,572,530,669,337,1379,1323,1577,1425,1407,1294,1107,907,798,769,5094,4963,4133,4134,6199,5947,29977,29977,29981,29982,29975,29975,29980,29981]} 1. d4 {[%emt 0:00:07]} e6 {[%emt 0:00:10]} 2. c4 {[%emt 0:04:00]} Bb4+ {[%emt 0:00:12]} 3. Bd2 {[%emt 0:00:20]} Bxd2+ {[%emt 0:02:01]} 4. Qxd2 {[%emt 0:00:21]} Nf6 {[%emt 0:00:25]} 5. Nc3 {[%emt 0:03:15]} d5 {[%emt 0:00:07]} 6. Nf3 {[%emt 0:01:21]} O-O {[%emt 0:01:01]} 7. e3 {[%emt 0:01:14]} Qe7 {[%emt 0:06:48]} 8. Rc1 {[%emt 0:03:49]} Rd8 {[%emt 0:01:53]} 9. cxd5 {[%emt 0:01:50] E11: Bogo-Indian.} exd5 {[%emt 0:00:09]} 10. Bd3 {[%emt 0:06:06]} Nbd7 {[%emt 0:07:44]} 11. O-O {[%emt 0:10:33] The position is equal.} c6 {[%emt 0:06:15]} 12. Qc2 {[%emt 0:05:53]} Nf8 {[%emt 0:04:38]} 13. Ne5 {[%emt 0:10:54]} Ng4 {[%emt 0:02:35]} 14. Nxg4 {[%emt 0:00:14]} Bxg4 {[%emt 0:00:06]} 15. Rfe1 {[%emt 0:00:26] [#]} Bh5 $146 {[%emt 0:10:00]} ({Predecessor:} 15... Qg5 16. f4 Qh6 17. f5 Re8 18. Qf2 g6 19. Qg3 Bh5 20. e4 Qg7 21. Qf2 dxe4 22. Nxe4 gxf5 {0-1 (50) Dokutchaev,A (2420)-Ivanov,S (2312) Petrozavodsk 2014}) 16. f4 {[%emt 0:04:37][%cal Bf2f4,Bf4f5][%mdl 32]} f6 {[%emt 0:03:43]} 17. Qf2 {[%emt 0:01:20]} Bg6 {[%emt 0:06:07]} 18. f5 {[%emt 0:01:54]} Bf7 {[%emt 0:00:51]} 19. Qf4 {[%emt 0:02:38]} Rac8 {[%emt 0:07:39]} 20. a3 {[%emt 0:01:13]} c5 {[%emt 0:04:05]} 21. Bb1 {[%emt 0:05:18]} a6 {[%emt 0:10:08]} 22. dxc5 {[%emt 0:04:58]} Rxc5 {[%emt 0:08:12]} 23. Ba2 {[%emt 0:06:58]} Qe5 {[%emt 0:02:36]} 24. Qd4 {[%emt 0:06:20]} (24. Qb4 {seems wilder.} Rc7 25. Rcd1 Rdd7 26. Qg4) 24... Qxd4 {[%emt 0:08:51]} (24... Rc6 $14) 25. exd4 $16 {[%emt 0:00:05]} Rc7 {[%emt 0:00:45]} 26. Ne2 {[%emt 0:09:39]} Rxc1 {[%emt 0:04:38]} (26... Re7 $142) 27. Rxc1 {[%emt 0:00:14]} Be8 {[%emt 0:01:07]} 28. Rc7 {[%emt 0:05:13]} Bc6 {[%emt 0:00:28]} 29. Nf4 {[%emt 0:00:24]} Rd6 {[%emt 0:00:30]} 30. g4 {[%emt 0:00:51]} g5 {[%emt 0:00:48]} 31. Nh5 {[%emt 0:01:14] White has more active pieces. The black rooks are badly placed.} (31. Ne2 $142) 31... Nd7 {[%emt 0:00:28]} 32. Kf2 {[%emt 0:02:04]} Kf7 {[%emt 0:00:24]} 33. Rc8 {[%emt 0:00:36]} Nf8 {[%emt 0:00:30]} 34. Ke3 {[%emt 0:00:40]} Ke7 {[%emt 0:00:19]} 35. Kd2 {[%emt 0:00:21]} Be8 {[%emt 0:00:52]} 36. Rc7+ {[%emt 0:00:50]} Rd7 {[%emt 0:00:43]} (36... Kd8 {is a better defense.} 37. Rxb7 Nd7) 37. Rxd7+ $18 {[%emt 0:00:13]} Nxd7 {[%emt 0:00:07]} 38. Bxd5 {[%emt 0:00:19][%mdl 4096] Endgame KBN-KBN} b5 {[%emt 0:00:54]} 39. Ng3 {[%emt 0:00:52]} (39. Ng7 $18) 39... Nb6 $16 {[%emt 0:00:06]} 40. Bb3 {[%emt 0:00:00]} Bc6 {[%emt 0:00:00]} 41. Ke3 {[%emt 0:06:12] Inhibits Bf3.} a5 {[%emt 0:06:56]} 42. Ne2 {[%emt 0:03:10]} Nd5+ $2 {[%emt 0:04:43][%mdl 8192] [#] A mistake that costs the game.} (42... Kd7 $16 43. Nc3 Kd6) 43. Bxd5 $18 {[%emt 0:07:29]} Bxd5 {[%emt 0:00:15] KB-KN} 44. Nc3 {[%emt 0:03:01][%csl LRb5,LRd5]} Bc4 {[%emt 0:00:11]} 45. Ke4 {[%emt 0:05:24]} Kd6 $2 {[%emt 0:07:11]} (45... a4 46. d5 Bf1) 46. b4 {[%emt 0:01:11]} axb4 {[%emt 0:00:06]} 47. axb4 {[%emt 0:00:03]} Bf1 {[%emt 0:00:45]} 48. d5 {[%emt 0:02:33]} Ke7 {[%emt 0:02:27]} 49. Ke3 {[%emt 0:02:55]} Bh3 {[%emt 0:02:55]} 50. Kf3 {[%emt 0:00:34]} ({Less strong is} 50. Nxb5 Bxg4 51. Kd4 Bxf5 $18) 50... h5 {[%emt 0:00:08]} 51. gxh5 {[%emt 0:00:20]} ({And not} 51. Nxb5 Bxg4+ 52. Ke3 (52. Ke4 h4 $11) 52... Bxf5 $11) 51... Bxf5 {[%emt 0:00:06]} 52. Nxb5 {[%emt 0:01:49]} Bd7 {[%emt 0:00:51]} 53. Nc3 {[%emt 0:00:29]} f5 {[%emt 0:00:10]} 54. b5 {[%emt 0:00:34][%cal Bb4b5,Bb5b6][%mdl 32] White mates.} Kf6 {[%emt 0:00:27]} 55. b6 {[%emt 0:00:30]} Bc8 {[%emt 0:00:06]} 56. d6 {[%emt 0:01:25]} Ke5 {[%emt 0:00:14]} 57. h6 {[%emt 0:02:07] Weighted Error Value: White=0.13 (very precise) /Black=0.47} 1-0

[Event "97th Argentine Championship 2022"]
[Site "Barichole"]
[Date "2022.12.04"]
[Round "5.3"]
[White "Pichot, Alan"]
[Black "Flores, Diego"]
[Result "1-0"]
[ECO "C88"]
[WhiteElo "2637"]
[BlackElo "2547"]
[Annotator "TA"]
[PlyCount "95"]
[EventDate "2022.12.01"]
[EventType "tourn"]
[EventCountry "ARG"]
[SourceTitle "playchess.com"]
[Source "ChessBase"]
[SourceQuality "1"]
[TimeControl "40/5400+30:1800+30"]

{[%evp 20,95,33,35,37,37,43,39,35,33,39,43,48,40,44,33,37,43,26,13,22,21,21,21,37,24,43,50,37,45,53,18,56,43,58,67,53,46,98,98,97,104,326,296,306,307,324,305,300,305,333,366,363,342,351,350,306,294,441,427,635,629,600,577,2335,2120,29972,29972,29963,29962,29975,29977,29977,29978,29978,29979,29978,29979]} 1. e4 {[%emt 0:02:19]} e5 {[%emt 0:00:58]} 2. Nf3 {[%emt 0:00:06]} Nc6 {[%emt 0:00:10]} 3. Bb5 {[%emt 0:00:04]} a6 {[%emt 0:01:34]} 4. Ba4 {[%emt 0:00:13]} Nf6 {[%emt 0:00:15]} 5. O-O {[%emt 0:00:06]} Be7 {[%emt 0:04:11]} 6. Re1 {[%emt 0:00:20]} b5 {[%emt 0:00:34]} 7. Bb3 {[%emt 0:00:05]} O-O {[%emt 0:00:10]} 8. h3 {[%emt 0:06:01]} Na5 {[%emt 0:02:30]} 9. Nxe5 {[%emt 0:03:08]} Nxb3 {[%emt 0:00:58]} 10. axb3 {[%emt 0:00:08]} Bb7 {[%emt 0:00:26]} 11. d3 {[%emt 0:00:07]} d5 $1 {[%emt 0:00:13] C88: Closed Ruy Lopez: Anti-Marshall Systems.} 12. exd5 {[%emt 0:00:09]} Qxd5 {[%emt 0:00:52][%csl Gb7][%cal Rd5g2] 12...Nxd5 is not played anymore.} 13. Qf3 {[%emt 0:00:07]} Bd6 {[%emt 0:03:39] [#] White is slightly better.} 14. Kf1 $1 {[%emt 0:00:58]} Rfb8 {[%emt 0:06:12]} 15. Qxd5 {[%emt 0:00:40]} Nxd5 {[%emt 0:00:05]} 16. Bd2 {[%emt 0:06:43]} c5 {[%emt 0:05:55]} 17. Nc3 {[%emt 0:07:45] aiming for Nd7.} Nb4 {[%emt 0:02:36]} 18. Rac1 {[%emt 0:00:13]} Rd8 {[%emt 0:04:07] [#]} 19. Ne4 $146 {[%emt 0:17:03]} ({Predecessor:} 19. Ng4 f5 20. Ne5 Rac8 21. Re2 Bf8 22. Bf4 Rd6 23. f3 Rd4 24. Be3 Rdd8 25. Rce1 {½-½ (68) Grobler,D (2279)-Reed,A (2179) ICCF email 2019}) 19... Bxe5 {[%emt 0:18:27] This pair of bishops is nice.} 20. Nxc5 {[%emt 0:02:32]} Bxb2 {[%emt 0:01:02]} 21. Nxb7 {[%emt 0:00:13]} Rdb8 {[%emt 0:06:54] White must now prevent ...Nxd3.} 22. Rb1 {[%emt 0:02:12]} Ba3 {[%emt 0:13:38]} 23. Na5 {[%emt 0:02:30]} Nxc2 {[%emt 0:00:43] [#]} 24. b4 $1 {[%emt 0:02:53]} Rd8 {[%emt 0:13:30] [#]} (24... Nxe1 25. Kxe1) 25. Rb3 $1 {[%emt 0:01:22] Black should prevent Re7.} Rac8 {[%emt 0:01:35]} (25... Bxb4 26. Bxb4) 26. Re4 {[%emt 0:09:41]} h6 {[%emt 0:03:32]} 27. g4 {[%emt 0:02:04]} Rd5 {[%emt 0:01:39]} 28. Re2 {[%emt 0:05:33]} f5 {[%emt 0:02:31]} (28... Kh7 $1 $14) 29. Bc3 $16 {[%emt 0:08:04]} Bxb4 {[%emt 0:00:45]} 30. Bxb4 {[%emt 0:00:05]} (30. Rxc2 $2 Bxa5 31. Ra3 Bb4 $19) 30... Nd4 $2 {[%emt 0:00:18] [#] Black cannot hold the game after this.} (30... Nxb4 $16 31. Rxb4 Rxd3) 31. Rc3 $1 $18 {[%emt 0:00:28]} Rxc3 {[%emt 0:00:16]} 32. Re8+ {[%emt 0:00:20]} ({Worse is} 32. Bxc3 Nxe2 33. Kxe2 Kf7 $11) 32... Kf7 {[%emt 0:03:19]} 33. Rf8+ {[%emt 0:00:09]} Kg6 {[%emt 0:00:07]} 34. Bxc3 {[%emt 0:00:33]} fxg4 {[%emt 0:00:23]} 35. Bxd4 {[%emt 0:04:59]} ({Don't play} 35. hxg4 Kg5 36. Re8 Kh4) 35... Rxd4 {[%emt 0:00:38][%mdl 4096] Endgame KRN-KR} 36. Nc6 {[%emt 0:00:05]} Rd6 {[%emt 0:00:14]} 37. Ne5+ {[%emt 0:01:47]} Kh7 {[%emt 0:00:08]} 38. hxg4 {[%emt 0:00:10] f4 is the strong threat.} ({Less strong is} 38. Nxg4 Rxd3 39. Ra8 Ra3 $16) 38... Rd5 {[%emt 0:00:07]} (38... b4 $142 39. Ke2 Rd5) 39. f4 {[%emt 0:04:37]} g5 {[%emt 0:00:27]} (39... a5 $142 40. Ke2 g5) 40. Rf7+ {[%emt 0:00:00]} Kg8 {[%emt 0:00:00][%cal Od5e5]} 41. Rd7 {[%emt 0:10:28]} Rxd7 {[%emt 0:00:59]} 42. Nxd7 {[%emt 0:00:12]} gxf4 {[%emt 0:00:09] KN-KP} 43. Ke2 {[%emt 0:00:28] White mates.} Kf7 {[%emt 0:03:17]} 44. Nc5 {[%emt 0:05:05]} Kf6 {[%emt 0:06:45]} 45. Nxa6 {[%emt 0:04:48]} Ke5 {[%emt 0:00:31]} 46. Kf3 {[%emt 0:00:07]} Kd4 {[%emt 0:00:14]} 47. Kxf4 {[%emt 0:00:04]} Kxd3 {[%emt 0:00:11] [#]} 48. Nc7 $1 {[%emt 0:00:07] Weighted Error Value: White=0.01 (flawless) /Black=0.41} 1-0

[Event "97th Argentine Championship 2022"]
[Site "Barichole"]
[Date "2022.12.04"]
[Round "5.4"]
[White "Mareco, Sandro"]
[Black "Paveto, Kevin"]
[Result "1/2-1/2"]
[ECO "A16"]
[WhiteElo "2619"]
[BlackElo "2431"]
[Annotator "TA"]
[PlyCount "62"]
[EventDate "2022.12.01"]
[EventType "tourn"]
[EventCountry "ARG"]
[SourceTitle "playchess.com"]
[Source "ChessBase"]
[SourceQuality "1"]
[TimeControl "40/5400+30:1800+30"]

{[%evp 9,62,29,26,0,0,-10,5,-6,25,26,20,35,26,27,23,34,85,-4,-7,-7,-5,-25,-15,-18,-14,-29,0,0,0,0,0,0,0,0,0,0,0,0,0,0,0,0,0,0,0,0,0,0,0,0,0,0,7,0,8]} 1. Nf3 {[%emt 0:00:02]} Nf6 {[%emt 0:00:14]} 2. c4 {[%emt 0:00:03]} g6 {[%emt 0:00:11]} 3. Nc3 {[%emt 0:00:05]} d5 {[%emt 0:00:12]} 4. cxd5 {[%emt 0:00:04]} Nxd5 {[%emt 0:00:11]} 5. h4 {[%emt 0:00:05][%cal Bh2h4,Bh4h5,Bh5h6][%mdl 32]} Bg7 {[%emt 0:00:44]} 6. h5 {[%emt 0:00:29] A16: English Opening: 1...Nf6 with ...d5.} Nc6 {[%emt 0:01:38] 6...Nc6 is better than 6...Nxc3.} 7. e4 {[%emt 0:00:04]} Nb6 {[%emt 0:08:56]} 8. Bb5 {[%emt 0:00:05] [#]} e5 $146 {[%emt 0:04:00] Prevents d4.} (8... Bg4 $5 {[%cal Rg4h5]}) ({Predecessor:} 8... Bg4 9. h6 Bf6 10. d4 Bxf3 11. Qxf3 Qxd4 12. Be3 Qd6 13. Bf4 Qe6 14. O-O O-O 15. Bxc6 bxc6 16. Rfe1 {½-½ (16) Vallejo Pons,F (2705)-Svidler,P (2755) Porto Carras 2011}) 9. d4 {[%emt 0:25:56]} (9. d3 {simplifies} Bg4 10. hxg6 hxg6 11. Rxh8+ Bxh8 12. Be3) 9... exd4 {[%emt 0:03:25]} 10. Bg5 {[%emt 0:00:05]} f6 {[%emt 0:16:14]} 11. h6 {[%emt 0:00:05][%mdl 1024] White has compensation.} Bf8 {[%emt 0:01:03]} 12. Bh4 {[%emt 0:00:05]} Bc5 {[%emt 0:17:54] [#]} (12... dxc3 $2 13. Qxd8+ Kxd8 14. Bxf6+ (14. bxc3 $2 {is the wrong capture.} g5 $19) 14... Be7 15. Bxh8 $18) (12... Bxh6 13. Nxd4 Bd7 14. Bxc6 Bxc6 15. Nxc6 Qxd1+ 16. Rxd1 $16) (12... Bd7 $14 13. Nxd4 Bd6) 13. Na4 {[%emt 0:00:12] White has more active pieces.} (13. e5 $1 $16 {And now Ne4 would win.} O-O 14. Bxc6 (14. Bxf6 Rxf6 15. exf6 dxc3 $17) 14... bxc6 15. Ne4) 13... Bb4+ $11 {[%emt 0:01:41]} 14. Kf1 $132 {[%emt 0:01:27][%mdl 2048] Qb3 is the strong threat. White is not holding back} Bd7 {[%emt 0:03:02]} 15. Kg1 {[%emt 0:15:34]} Be7 {[%emt 0:01:35]} 16. Rc1 {[%emt 0:02:17]} O-O {[%emt 0:14:12]} 17. Bg3 {[%emt 0:04:15]} Kh8 {[%emt 0:10:21]} 18. a3 {[%emt 0:13:40] The position is equal.} a6 {[%emt 0:07:53]} 19. Nxb6 {[%emt 0:00:43]} cxb6 {[%emt 0:00:02]} 20. Bxc6 {[%emt 0:02:58]} Bxc6 {[%emt 0:02:00]} 21. Qxd4 {[%emt 0:00:24]} Qxd4 {[%emt 0:00:28]} 22. Nxd4 {[%emt 0:00:05]} Bxe4 {[%emt 0:00:07]} 23. Re1 {[%emt 0:00:47]} f5 {[%emt 0:00:47]} 24. f3 {[%emt 0:33:00]} Bc5 $1 {[%emt 0:01:12]} 25. Be5+ {[%emt 0:00:00]} Kg8 {[%emt 0:00:34][%cal Oa8d8]} 26. b4 {[%emt 0:00:00][%cal Ob4c5]} ({Don't play} 26. fxe4 Rad8 27. Rf1 fxe4 $17) 26... Bxd4+ {[%emt 0:00:23]} 27. Bxd4 {[%emt 0:00:00]} Bc6 {[%emt 0:00:06]} 28. Bxb6 {[%emt 0:00:00]} Rfe8 {[%emt 0:00:13]} 29. Kf2 {[%emt 0:00:00]} Rxe1 {[%emt 0:00:36]} 30. Rxe1 {[%emt 0:00:00] Strongly threatening Re7.} Re8 {[%emt 0:00:07] Prevents Re7.} 31. Rd1 {[%emt 0:00:00]} Kf7 {[%emt 0:00:18] Weighted Error Value: White=0.09 (flawless) /Black=0.07 (flawless)} 1/2-1/2

[Event "97th Argentine Championship 2022"]
[Site "Barichole"]
[Date "2022.12.04"]
[Round "5.5"]
[White "Gaitan, Juan Manuel"]
[Black "Acosta, Pablo Ismael"]
[Result "1/2-1/2"]
[ECO "E11"]
[WhiteElo "2347"]
[BlackElo "2461"]
[Annotator "TA"]
[PlyCount "46"]
[EventDate "2022.12.01"]
[EventType "tourn"]
[EventCountry "ARG"]
[SourceTitle "playchess.com"]
[Source "ChessBase"]
[SourceQuality "1"]
[TimeControl "40/5400+30:1800+30"]

{[%evp 10,46,41,23,37,16,17,0,14,20,54,55,54,29,37,16,18,20,39,6,0,-26,-10,-17,-12,-6,-10,-10,0,-13,0,0,0,0,0,0,0,0,0]} 1. d4 {[%emt 0:00:52]} Nf6 {[%emt 0:00:12]} 2. c4 {[%emt 0:00:08]} e6 {[%emt 0:00:05]} 3. Nf3 {[%emt 0:00:07]} Bb4+ {[%emt 0:00:56]} 4. Nbd2 {[%emt 0:00:24]} O-O {[%emt 0:00:13]} 5. a3 {[%emt 0:02:19]} Be7 {[%emt 0:00:18]} 6. e4 {[%emt 0:00:16]} d6 {[%emt 0:00:12][%cal Oe6e5] E11: Bogo-Indian.} 7. Bd3 {[%emt 0:02:56]} e5 {[%emt 0:00:54]} 8. O-O {[%emt 0:00:51]} exd4 {[%emt 0:01:22]} 9. Nxd4 {[%emt 0:00:15]} Nc6 {[%emt 0:00:39] Against f4} 10. Nxc6 {[%emt 0:19:00]} bxc6 {[%emt 0:00:09]} 11. b4 {[%emt 0:00:43]} a5 {[%emt 0:07:54] [#]} 12. Bb2 $146 {[%emt 0:00:20]} ({Predecessor:} 12. b5 Nd7 13. a4 Bf6 14. Ra3 Nc5 15. Bc2 Re8 16. Rg3 cxb5 17. cxb5 Bb7 18. Re1 {½-½ (36) Werle,J (2511)-Delchev,A (2644) Paleochora 2014}) 12... axb4 {[%emt 0:11:04]} 13. axb4 {[%emt 0:00:09]} Rb8 {[%emt 0:03:32]} (13... Rxa1 {simplifies} 14. Bxa1 Nd7 15. Qc2 Bf6) 14. Qc2 {[%emt 0:07:19]} Rxb4 {[%emt 0:08:27]} 15. e5 {[%emt 0:01:23]} dxe5 {[%emt 0:04:20]} 16. Bxe5 {[%emt 0:01:16] The position is equal.} Bd6 {[%emt 0:01:56]} 17. Bc3 {[%emt 0:00:20]} Rb8 {[%emt 0:01:12]} 18. Nf3 {[%emt 0:15:09][%cal Oc4c5]} c5 {[%emt 0:05:28]} 19. Rae1 {[%emt 0:01:55]} h6 {[%emt 0:02:37]} 20. Ne5 {[%emt 0:08:34] [#] And now Nc6 would win.} Ng4 {[%emt 0:10:57]} 21. Nf3 {[%emt 0:02:43]} Nf6 {[%emt 0:12:53]} 22. Ne5 {[%emt 0:00:44] Threatens to win with Nc6.} Ng4 {[%emt 0:06:51]} 23. Nf3 {[%emt 0:00:11]} Nf6 {[%emt 0:04:21] Weighted Error Value: White=0.08 (flawless) /Black=0.05 (flawless)} 1/2-1/2

[Event "97th Argentine Championship 2022"]
[Site "Barichole"]
[Date "2022.12.04"]
[Round "5.6"]
[White "Peralta, Fernando"]
[Black "Sorin, Ariel"]
[Result "1-0"]
[ECO "A58"]
[WhiteElo "2587"]
[BlackElo "2363"]
[Annotator "TA"]
[PlyCount "63"]
[EventDate "2022.12.01"]
[EventType "tourn"]
[EventCountry "ARG"]
[SourceTitle "playchess.com"]
[Source "ChessBase"]
[SourceQuality "1"]
[TimeControl "40/5400+30:1800+30"]

{[%evp 9,63,35,50,54,56,54,46,25,30,45,45,23,20,13,14,26,83,116,129,116,90,106,104,-82,133,138,135,135,126,139,134,133,111,127,131,135,131,77,60,67,66,92,109,119,256,243,274,268,246,239,541,528,673,602,1029,1008]} 1. d4 {[%emt 0:00:05]} Nf6 {[%emt 0:00:04]} 2. c4 {[%emt 0:00:06][%cal Bc2c4,Bc4b5,Bb5a6][%mdl 32]} c5 {[%emt 0:00:04]} 3. d5 {[%emt 0:00:06]} b5 {[%emt 0:00:03]} 4. cxb5 {[%emt 0:00:31]} a6 {[%emt 0:00:05]} 5. bxa6 {[%emt 0:00:04]} g6 {[%emt 0:00:05][%cal Of8g7]} 6. Nc3 {[%emt 0:00:19][%cal Oa6a7] A58: Benko/Volga Gambit: Lines with 5 bxa6.} Bg7 {[%emt 0:00:06][%cal Oe8g8] Inhibits a7.} 7. e4 {[%emt 0:03:45][%cal Be2e4,Be4e5,Be5e6][%mdl 32]} O-O {[%emt 0:00:11][%cal Oe7e6]} 8. Be2 {[%emt 0:02:08] White is slightly better.} Qa5 {[%emt 0:05:37]} 9. Bd2 {[%emt 0:00:41]} (9. a7 {feels hotter.} Nxe4 10. axb8=R Rxb8 11. Kf1) 9... Bxa6 {[%emt 0:04:14]} 10. e5 {[%emt 0:01:58]} Ne8 {[%emt 0:04:16]} 11. Nf3 {[%emt 0:00:21]} d6 {[%emt 0:04:22]} 12. e6 {[%emt 0:00:42]} (12. exd6 {simplifies} exd6 13. O-O Qb6 14. Re1) 12... f5 {[%emt 0:20:10]} (12... Bxe2 $1 $11 {keeps the balance.} 13. Qxe2 (13. Nxe2 Qa6 $11) 13... Qa6) 13. h4 $16 {[%emt 0:01:55] Black must now prevent h5.} Nf6 {[%emt 0:17:15] Inhibits h5.} 14. h5 $1 {[%emt 0:01:43]} Nxh5 {[%emt 0:04:01] [#]} 15. Rxh5 $1 {[%emt 0:06:17]} gxh5 {[%emt 0:00:44] [#]} 16. Ng5 $2 {[%emt 0:01:40]} (16. Nb5 $1 $16 {[%mdl 512] is forced if you want to stay better.} Qd8 (16... Qb6 17. a4) 17. Ng5) 16... Bxe2 $2 {[%emt 0:02:30]} (16... Qb4 $1 $17 {[%cal Rb4h4] keeps the pressure on. And now ...Qh4 would win.} 17. Bxa6 (17. Bxh5 Qc4 $17) 17... Nxa6 18. Qxh5 h6) 17. Qxe2 {[%emt 0:04:23] Hoping for a3.} Qb4 {[%emt 0:00:12]} 18. Qxh5 {[%emt 0:06:08][%csl Gg5][%cal Rh5h7]} h6 {[%emt 0:00:04]} (18... Qxb2 $2 19. Qxh7#) 19. Nf7 {[%emt 0:02:19] Qg6 is the strong threat.} Qg4 {[%emt 0:00:29] Against Qg6} (19... Qxb2 $2 20. Rb1 (20. Nxh6+ Bxh6 21. Qxh6 Qxa1+ $11) (20. Rc1 Qb4 $18) 20... Qc2 21. Rc1 $18) 20. Nxh6+ $40 {[%emt 0:11:00][%mdl 128] White attacks with force.} Bxh6 {[%emt 0:00:23]} 21. Qxh6 {[%emt 0:06:03]} Rf6 {[%emt 0:01:51]} 22. Qg5+ {[%emt 0:06:22]} Kf8 {[%emt 0:01:08]} 23. f3 {[%emt 0:02:43] White is more active.} (23. Qxg4 $142 fxg4 24. Ke2) 23... Qxg5 {[%emt 0:02:00][%mdl 64] Remove Defender} 24. Bxg5 {[%emt 0:00:06]} Rg6 {[%emt 0:00:02]} 25. f4 {[%emt 0:00:08]} Rg8 {[%emt 0:00:37]} 26. Kf2 {[%emt 0:07:37] Strongly threatening Rh1.} Rh8 {[%emt 0:00:39] [#] Inhibits Rh1. Black cannot hold the game after this.} (26... Na6 $16 {is a better defense.}) 27. Ne2 $1 $18 {[%emt 0:04:34]} Na6 {[%emt 0:00:06] [#]} 28. Ng3 $1 {[%emt 0:02:55]} Nb4 {[%emt 0:01:13]} 29. Nxf5 {[%emt 0:01:51]} Rh7 {[%emt 0:00:31]} (29... Nxd5 30. Rd1 Nf6) 30. Bxe7+ {[%emt 0:03:27] [#] White is clearly winning.} Ke8 $146 {[%emt 0:05:20]} ({Predecessor:} 30... Rxe7 31. Rh1 {1-0 (32) Tanriverdi,E (2276)-Natsidis,C (2346) Lvov 2018}) 31. Bg5 {[%emt 0:03:25]} Ra6 {[%emt 0:03:42] [#]} 32. Rh1 $3 {[%emt 0:01:09][%mdl 512] Weighted Error Value: White=0.19 (very precise) /Black=0.38} 1-0

[Event "97th Argentine Championship 2022"]
[Site "Barichole"]
[Date "2022.12.05"]
[Round "6.1"]
[White "Perez Ponsa, Federico"]
[Black "Peralta, Fernando"]
[Result "1/2-1/2"]
[ECO "C02"]
[WhiteElo "2538"]
[BlackElo "2587"]
[Annotator "TA"]
[PlyCount "57"]
[EventDate "2022.12.01"]
[EventType "tourn"]
[EventCountry "ARG"]
[SourceTitle "playchess.com"]
[Source "ChessBase"]
[SourceQuality "1"]
[TimeControl "40/5400+30:1800+30"]

{[%evp 17,57,-4,10,15,15,0,0,2,0,0,1,0,18,1,1,1,1,0,0,0,0,0,0,0,14,11,13,10,12,5,23,10,22,25,29,21,20,0,31,0,25,0]} 1. e4 {[%emt 0:02:59]} e6 {[%emt 0:00:08]} 2. d4 {[%emt 0:00:05]} d5 {[%emt 0:00:04]} 3. e5 {[%emt 0:00:03]} c5 {[%emt 0:00:13]} 4. c3 {[%emt 0:00:06]} Nc6 {[%emt 0:00:04]} 5. Nf3 {[%emt 0:00:04]} Bd7 {[%emt 0:00:26]} 6. Be2 {[%emt 0:00:47]} Nge7 {[%emt 0:00:20]} 7. Na3 {[%emt 0:00:12]} cxd4 {[%emt 0:01:57]} 8. cxd4 {[%emt 0:00:05]} Nf5 {[%emt 0:00:04]} 9. Nc2 {[%emt 0:00:09]} Be7 {[%emt 0:00:10]} 10. O-O {[%emt 0:00:23] C02: French: Advance Variation.} O-O {[%emt 0:00:06]} 11. Bd3 $1 {[%emt 0:00:22] 11.Bd3 is better than 11.Ne3.} f6 {[%emt 0:01:49]} 12. Bf4 {[%emt 0:00:38] The position is equal.} fxe5 {[%emt 0:10:25]} 13. Nxe5 {[%emt 0:00:21]} Rc8 {[%emt 0:00:30]} 14. Nxc6 {[%emt 0:07:10]} Rxc6 {[%emt 0:06:16]} 15. Be5 {[%emt 0:11:03]} Be8 {[%emt 0:04:20]} 16. Bxf5 {[%emt 0:02:45]} Rxf5 {[%emt 0:09:27]} 17. Ne3 {[%emt 0:01:27]} Rf8 {[%emt 0:00:24] [#]} 18. Rc1 $146 {[%emt 0:07:22]} ({Predecessor:} 18. Qg4 Bf6 19. Qg3 Bxe5 20. Qxe5 Qf6 21. Qxf6 gxf6 22. Rac1 Bd7 23. f4 Rfc8 24. Rcd1 {1-0 (42) Iskandarov,M (2601)-Lupulescu,C (2603) Geoagiu Bai 2022}) 18... Rxc1 {[%emt 0:15:03]} 19. Qxc1 {[%emt 0:00:04]} Bb5 {[%emt 0:00:48]} 20. Rd1 {[%emt 0:00:28]} Bg5 {[%emt 0:01:50]} 21. Qc3 {[%emt 0:09:03]} Qc8 {[%emt 0:07:29]} 22. Rc1 {[%emt 0:06:59][%cal Bd1c1,Bc1c3,Bc3c7][%mdl 32]} (22. Qe1 {seems wilder.} Bxe3 23. Qxe3 Qc2 24. Rc1) 22... Qxc3 {[%emt 0:00:29]} 23. Rxc3 {[%emt 0:00:04]} Bh4 {[%emt 0:13:06]} 24. f3 {[%emt 0:07:46]} Be1 {[%emt 0:04:14] This pair of bishops is nice.} 25. Rc7 {[%emt 0:05:37]} Rf7 {[%emt 0:00:09]} 26. Rc8+ {[%emt 0:00:04]} Rf8 {[%emt 0:00:05]} 27. Rc7 {[%emt 0:00:03]} Rf7 {[%emt 0:00:05]} 28. Rc8+ {[%emt 0:00:04]} Rf8 {[%emt 0:00:03]} 29. Rc7 {[%emt 0:00:39] An even fight not without its subleties.   Weighted Error Value: White=0.07 (flawless) /Black=0.04 (flawless)} 1/2-1/2